bitfinex/quotes_SOLUSD_20250316
["timestamp","ask_amount","ask_price","bid_price","bid_amount"]
[1742135456877,10.75241731,128.64,128.6,18.35595574]
[1742135457082,10.58025574,128.63,128.58,18.35745574]
[1742135459083,16.54746098,128.63,128.58,24.32466098]
[1742135459277,7.18216157,128.62,128.58,24.32466098]
[1742135459781,31.50462255,128.62,128.58,16.54746098]
[1742135460082,16.54746098,128.61,128.57,31.94576098]
[1742135460667,7.18216157,128.62,128.57,31.94576098]
[1742135460873,7.18216157,128.62,128.59,16.54746098]
[1742135461793,7.18216157,128.62,128.58,16.54746098]
[1742135464491,18.64964886,128.61,128.58,24.32436098]
[1742135464666,35.19710984,128.61,128.57,24.32506098]
[1742135464872,0.14216157,128.58,128.55,0.063]
[1742135465074,7.04,128.57,128.55,0.063]
[1742135465302,35.48143298,128.56,128.55,0.063]
[1742135466375,43.25983298,128.56,128.55,0.063]
[1742135467301,35.48143298,128.56,128.55,0.063]
[1742135469295,43.25983298,128.56,128.55,0.063]
[1742135469989,35.48143298,128.56,128.55,0.063]
[1742135471786,43.25983298,128.56,128.55,0.063]
[1742135472985,35.48143298,128.56,128.55,0.063]
[1742135473692,43.25983298,128.56,128.55,0.063]
[1742135474378,35.48143298,128.56,128.55,0.063]
[1742135476903,18.64964886,128.57,128.55,0.063]
[1742135477085,222.67178412,128.58,128.55,0.063]
[1742135477286,7.04,128.57,128.55,0.063]
[1742135477803,25.68964886,128.57,128.55,0.063]
[1742135478910,25.68964886,128.57,128.55,7.842]
[1742135479791,18.933972,128.56,128.55,0.063]
[1742135479993,35.48143298,128.56,128.55,0.063]
[1742135480909,43.25983298,128.56,128.55,0.063]
[1742135486303,35.48143298,128.56,128.55,0.063]
[1742135486687,0.28432314,128.56,128.55,0.063]
[1742135486905,18.933972,128.56,128.55,0.063]
[1742135487211,23.58746098,128.57,128.55,0.063]
[1742135487427,25.68964886,128.57,128.55,0.063]
[1742135489197,35.48143298,128.56,128.55,0.063]
[1742135491517,43.25983298,128.56,128.55,0.063]
[1742135495323,35.48143298,128.56,128.55,0.063]
[1742135496518,18.933972,128.56,128.55,0.063]
[1742135496703,16.83178412,128.56,128.55,0.063]
[1742135498221,0.28432314,128.56,128.55,0.063]
[1742135498420,7.04,128.56,128.55,0.063]
[1742135498623,7.04,128.56,128.55,24.38946098]
[1742135499317,7.04,128.56,128.55,0.063]
[1742135500719,25.83181043,128.56,128.55,0.063]
[1742135501531,50.29983298,128.56,128.55,0.063]
[1742135504198,31.36586098,128.56,128.55,0.063]
[1742135504414,7.04,128.56,128.55,0.063]
[1742135504613,7.07,128.56,128.55,16.61046098]
[1742135505006,0.03,128.56,128.55,16.61046098]
[1742135506438,0.03,128.56,128.55,7.842]
[1742135506737,0.03,128.56,128.55,0.063]
[1742135507521,0.03,128.56,128.55,16.61046098]
[1742135509136,0.03,128.56,128.55,24.38946098]
[1742135509339,0.03,128.57,128.56,20.0]
[1742135509540,7.04,128.61,128.56,42.75566098]
[1742135509835,7.04,128.61,128.59,16.54746098]
[1742135510041,7.04,128.61,128.58,16.54746098]
[1742135511638,7.04,128.61,128.59,7.7766]
[1742135512335,7.04,128.61,128.58,7.777]
[1742135512539,7.04,128.61,128.58,24.32446098]
[1742135514137,7.04,128.61,128.56,20.0]
[1742135514138,16.68962255,128.6,128.56,20.0]
[1742135514433,16.54746098,128.59,128.55,16.61046098]
[1742135515333,16.54746098,128.59,128.55,0.063]
[1742135515511,35.33927141,128.58,128.55,0.063]
[1742135517437,16.83178412,128.56,128.55,0.063]
[1742135517639,23.87178412,128.56,128.55,0.063]
[1742135517946,7.04,128.56,128.55,0.063]
[1742135520349,7.04,128.56,128.55,16.61046098]
[1742135521040,7.04,128.58,128.55,16.61046098]
[1742135521730,7.04,128.58,128.56,7.7784]
[1742135522339,7.04,128.58,128.55,7.8418]
[1742135522546,0.14216157,128.56,128.55,0.063]
[1742135522846,16.68962255,128.56,128.55,0.063]
[1742135523352,16.83178412,128.56,128.55,0.063]
[1742135523641,43.25983298,128.56,128.55,0.063]
[1742135523844,18.933972,128.55,128.54,0.063]
[1742135524028,38.933972,128.53,128.52,0.063]
[1742135524229,18.933972,128.52,128.51,0.063]
[1742135524543,35.48143298,128.52,128.51,0.063]
[1742135525749,52.02889396,128.52,128.51,0.063]
[1742135525935,59.80969396,128.52,128.51,0.063]
[1742135530256,35.48143298,128.52,128.51,0.063]
[1742135530651,42.52143298,128.52,128.51,0.063]
[1742135530849,25.973972,128.52,128.51,0.063]
[1742135531053,7.04,128.52,128.51,0.063]
[1742135531468,205.86,128.53,128.51,0.063]
[1742135531637,212.9,128.53,128.51,0.063]
[1742135532237,212.9,128.53,128.51,7.8444]
[1742135533031,7.04,128.53,128.51,7.8444]
[1742135533229,18.71264886,128.57,128.52,16.54746098]
[1742135533429,7.04,128.56,128.52,16.54746098]
[1742135533634,7.04,128.56,128.51,27.2981]
[1742135534248,7.04,128.56,128.51,19.5167]
[1742135534441,7.04,128.56,128.53,16.54746098]
[1742135534638,7.04,128.56,128.52,16.54746098]
[1742135534936,16.54746098,128.54,128.51,0.063]
[1742135535349,35.33927141,128.55,128.51,0.063]
[1742135535653,16.54746098,128.54,128.51,0.063]
[1742135536556,16.54746098,128.53,128.51,0.063]
[1742135536940,18.79181043,128.53,128.51,0.063]
[1742135537342,16.54746098,128.52,128.51,0.063]
[1742135537565,16.54746098,128.53,128.51,0.063]
[1742135537946,16.68962255,128.52,128.51,0.063]
[1742135538145,35.48143298,128.52,128.51,0.063]
[1742135538746,43.26223298,128.52,128.51,0.063]
[1742135539835,59.80969396,128.52,128.51,0.063]
[1742135540462,43.26223298,128.52,128.51,0.063]
[1742135540835,59.80969396,128.52,128.51,0.063]
[1742135543262,265.76969396,128.52,128.51,0.063]
[1742135544361,249.22223298,128.52,128.51,0.063]
[1742135544541,241.44143298,128.52,128.51,0.063]
[1742135544937,248.48143298,128.52,128.51,0.063]
[1742135545362,256.26223298,128.52,128.51,0.063]
[1742135547671,248.48143298,128.52,128.51,0.063]
[1742135548168,25.83181043,128.52,128.51,0.063]
[1742135548369,7.04,128.52,128.51,0.063]
[1742135548548,0.14216157,128.55,128.51,16.61046098]
[1742135548751,7.04,128.54,128.53,16.54746098]
[1742135549049,7.04,128.54,128.52,24.32826098]
[1742135549370,7.04,128.54,128.52,7.7808]
[1742135549953,7.04,128.54,128.51,24.39166098]
[1742135550674,7.04,128.54,128.53,24.32766098]
[1742135551169,7.103,128.56,128.53,24.32766098]
[1742135551376,7.103,128.56,128.55,16.54746098]
[1742135551868,0.063,128.56,128.54,16.54746098]
[1742135552445,0.063,128.56,128.53,24.32766098]
[1742135552640,18.85481043,128.56,128.52,25.88896098]
[1742135552961,16.54746098,128.54,128.52,0.03]
[1742135553275,16.54746098,128.55,128.52,0.03]
[1742135554281,35.40227141,128.56,128.52,7.8108]
[1742135554775,43.18087141,128.56,128.52,7.8108]
[1742135555378,18.79181043,128.54,128.52,0.03]
[1742135555548,35.33927141,128.54,128.52,0.03]
[1742135556740,35.33927141,128.53,128.52,0.03]
[1742135557771,18.79181043,128.53,128.52,0.03]
[1742135558264,35.33927141,128.53,128.52,0.03]
[1742135558763,18.79181043,128.53,128.52,0.03]
[1742135564771,18.933972,128.53,128.52,0.03]
[1742135564953,43.26163298,128.53,128.52,0.03]
[1742135565354,59.80909396,128.53,128.52,0.03]
[1742135566271,43.26163298,128.53,128.52,0.03]
[1742135567262,59.80909396,128.53,128.52,0.03]
[1742135570651,0.14216157,128.48,128.37,39.08916157]
[1742135570852,7.18216157,128.47,128.43,18.10636098]
[1742135571070,7.18216157,128.47,128.44,16.54746098]
[1742135571653,7.18216157,128.47,128.44,24.33316098]
[1742135571956,7.18216157,128.47,128.44,7.7857]
[1742135572564,18.64964886,128.46,128.42,6.6972]
[1742135572772,18.64964886,128.46,128.42,23.24466098]
[1742135572773,35.19710984,128.46,128.42,23.24466098]
[1742135573777,0.14216157,128.45,128.42,6.6972]
[1742135574275,18.64964886,128.44,128.42,0.063]
[1742135574955,18.64964886,128.44,128.42,7.8498]
[1742135575370,18.64964886,128.44,128.42,0.063]
[1742135575567,0.28432314,128.43,128.42,0.063]
[1742135576770,35.48143298,128.43,128.42,0.063]
[1742135577369,43.26773298,128.43,128.42,0.063]
[1742135579289,35.48143298,128.43,128.42,0.063]
[1742135579778,20.14216157,128.4,128.39,0.03]
[1742135579962,27.18216157,128.4,128.39,0.03]
[1742135580166,43.72962255,128.4,128.39,0.03]
[1742135581196,79.06889396,128.4,128.39,0.03]
[1742135581362,79.06889396,128.4,128.31,0.03]
[1742135581363,0.14216157,128.35,128.31,0.03]
[1742135581562,7.04,128.34,128.31,0.03]
[1742135582158,18.79181043,128.33,128.31,0.03]
[1742135583499,35.33927141,128.33,128.31,0.03]
[1742135583675,35.33927141,128.32,128.31,0.03]
[1742135583881,18.79181043,128.32,128.31,0.03]
[1742135584296,0.14216157,128.32,128.31,0.03]
[1742135585890,35.48143298,128.32,128.31,0.03]
[1742135586195,43.27443298,128.32,128.31,0.03]
[1742135586900,49.52251423,128.32,128.31,0.03]
[1742135587083,35.48143298,128.32,128.31,0.03]
[1742135587394,43.27443298,128.32,128.31,0.03]
[1742135587611,50.31443298,128.32,128.31,0.03]
[1742135590497,0.14216157,128.31,128.28,0.6463896]
[1742135590699,52.02889396,128.29,128.28,0.6463896]
[1742135591033,258.26889396,128.29,128.28,0.6463896]
[1742135592608,76.71572314,128.25,128.18,0.03]
[1742135592774,18.933972,128.19,128.18,0.03]
[1742135592980,42.52143298,128.19,128.18,0.03]
[1742135593295,18.933972,128.18,128.1,25.88676098]
[1742135593465,18.933972,128.16,128.12,16.54746098]
[1742135593669,7.04,128.15,128.13,16.54746098]
[1742135593902,7.04,128.15,128.12,16.54746098]
[1742135594278,7.04,128.18,128.14,16.54746098]
[1742135594576,7.04,128.18,128.17,16.54746098]
[1742135594979,0.14216157,128.2,128.15,6.4987]
[1742135595176,33.83836852,128.19,128.15,33.15490695]
[1742135595494,0.14216157,128.18,128.15,6.4987]
[1742135595897,26.79836852,128.18,128.13,34.46050695]
[1742135596099,0.28432314,128.15,128.12,14.3036]
[1742135596291,7.04,128.14,128.12,6.4987]
[1742135596805,33.69620695,128.14,128.1,1.5335]
[1742135596998,33.69620695,128.14,128.1,35.99600695]
[1742135597201,7.04,128.14,128.1,35.99600695]
[1742135597399,0.28432314,128.13,128.1,26.65620695]
[1742135597787,0.28432314,128.13,128.09,40.96180695]
[1742135598001,0.28432314,128.13,128.1,26.65620695]
[1742135598410,26.65620695,128.12,128.08,26.65620695]
[1742135598711,0.28432314,128.11,128.08,26.65620695]
[1742135598893,0.14216157,128.11,128.08,26.65620695]
[1742135599094,0.14216157,128.12,128.09,26.65620695]
[1742135599410,0.28432314,128.13,128.1,20.0]
[1742135599606,0.28432314,128.13,128.1,19.5]
[1742135599806,7.04,128.14,128.11,26.65620695]
[1742135600108,0.28432314,128.14,128.1,46.15620695]
[1742135600284,7.04,128.13,128.1,46.15620695]
[1742135600480,7.04,128.13,128.11,7.8057]
[1742135600679,0.28432314,128.14,128.11,7.8057]
[1742135600879,7.04,128.13,128.11,7.8057]
[1742135601079,7.04,128.13,128.1,7.8061]
[1742135601774,7.04,128.13,128.1,7.3061]
[1742135602808,0.063,128.18,128.11,20.0]
[1742135602985,0.063,128.18,128.15,26.65620695]
[1742135603185,33.75920695,128.18,128.13,46.65620695]
[1742135603383,7.103,128.18,128.15,26.65620695]
[1742135603618,7.103,128.18,128.16,26.65620695]
[1742135603818,7.103,128.18,128.15,26.65620695]
[1742135604118,7.103,128.18,128.13,21.5317]
[1742135604293,7.103,128.18,128.14,26.65620695]
[1742135604710,7.103,128.18,128.15,7.8033]
[1742135604914,7.103,128.18,128.15,34.45950695]
[1742135605495,7.103,128.18,128.16,26.65620695]
[1742135605702,0.063,128.18,128.17,26.65620695]
[1742135606212,7.04,128.2,128.19,26.65620695]
[1742135606794,7.04,128.2,128.19,34.45710695]
[1742135607299,7.32432314,128.2,128.16,26.65620695]
[1742135607502,7.32432314,128.2,128.17,26.65620695]
[1742135607823,7.32432314,128.2,128.16,26.65620695]
[1742135608307,0.28432314,128.19,128.15,26.65620695]
[1742135609213,0.28432314,128.19,128.16,7.8027]
[1742135609596,18.933972,128.19,128.1,26.65620695]
[1742135609801,26.79836852,128.17,128.13,7.8045]
[1742135610008,0.14216157,128.17,128.13,34.46070695]
[1742135610215,7.18216157,128.2,128.16,26.65620695]
[1742135610526,0.28432314,128.19,128.16,26.65620695]
[1742135611027,18.933972,128.19,128.13,27.3159]
[1742135611217,18.933972,128.19,128.15,26.65620695]
[1742135611794,0.28432314,128.19,128.16,26.65620695]
[1742135612328,81.7,128.23,128.18,26.65620695]
[1742135612531,0.14216157,128.23,128.2,26.65620695]
[1742135612700,7.18216157,128.23,128.21,26.65620695]
[1742135612903,7.18216157,128.23,128.2,26.65620695]
[1742135613099,7.18216157,128.23,128.19,34.45680695]
[1742135613298,0.14216157,128.23,128.19,34.45680695]
[1742135613497,7.04,128.22,128.2,26.65620695]
[1742135613907,7.18216157,128.23,128.2,26.65620695]
[1742135614998,7.04,128.23,128.21,26.65620695]
[1742135615521,7.04,128.23,128.22,7.799]
[1742135615723,18.79181043,128.28,128.22,34.45520695]
[1742135616014,33.69620695,128.25,128.2,26.65620695]
[1742135616218,26.79836852,128.24,128.2,26.65620695]
[1742135616402,26.79836852,128.24,128.19,34.45710695]
[1742135616997,26.79836852,128.24,128.19,7.8009]
[1742135617202,26.65620695,128.23,128.19,7.8009]
[1742135617504,33.69620695,128.25,128.21,26.65620695]
[1742135617703,7.04,128.25,128.21,26.65620695]
[1742135617908,7.04,128.25,128.23,26.65620695]
[1742135618107,0.28432314,128.27,128.23,26.65620695]
[1742135618431,7.04,128.25,128.21,26.65620695]
[1742135618628,33.69620695,128.25,128.2,26.65620695]
[1742135619336,26.65620695,128.23,128.19,26.65620695]
[1742135619509,26.65620695,128.23,128.19,34.45680695]
[1742135620115,34.45470695,128.23,128.18,34.45750695]
[1742135620524,26.65620695,128.23,128.18,34.45750695]
[1742135621228,34.59646852,128.24,128.19,26.65620695]
[1742135621414,26.65620695,128.23,128.18,34.45750695]
[1742135621819,34.59646852,128.24,128.19,26.65620695]
[1742135622540,7.04,128.25,128.22,26.65620695]
[1742135623219,7.04,128.25,128.21,16.64351694]
[1742135623721,7.04,128.25,128.22,7.799]
[1742135623952,7.04,128.24,128.22,7.799]
[1742135624109,7.04,128.24,128.22,24.44251694]
[1742135624927,0.28432314,128.27,128.22,24.44251694]
[1742135625229,7.04,128.24,128.23,26.62433719]
[1742135625417,7.04,128.24,128.22,34.42333719]
[1742135625612,7.04,128.24,128.23,26.62433719]
[1742135626331,0.14216157,128.27,128.23,26.62433719]
[1742135626332,7.04,128.27,128.23,26.62433719]
[1742135626515,7.04,128.27,128.25,26.62433719]
[1742135627433,7.18216157,128.28,128.25,26.62433719]
[1742135627821,7.18216157,128.28,128.24,26.62433719]
[1742135628742,33.80649876,128.28,128.23,34.42273719]
[1742135629119,7.18216157,128.28,128.23,7.7984]
[1742135629310,7.18216157,128.28,128.24,26.62433719]
[1742135630029,234.59333719,128.31,128.26,26.62433719]
[1742135630215,7.04,128.3,128.28,26.62433719]
[1742135630541,7.04,128.3,128.27,26.62433719]
[1742135630741,26.76649876,128.29,128.24,26.62433719]
[1742135630915,26.62433719,128.27,128.23,7.7984]
[1742135631829,0.14216157,128.27,128.23,34.42273719]
[1742135632133,0.14216157,128.29,128.26,26.62433719]
[1742135633633,26.76649876,128.29,128.24,26.62433719]
[1742135633938,34.56139876,128.29,128.24,26.62433719]
[1742135634642,34.56139876,128.29,128.24,34.42173719]
[1742135635436,0.14216157,128.29,128.25,26.62433719]
[1742135636314,33.66433719,128.3,128.25,26.62433719]
[1742135636528,7.04,128.3,128.26,26.62433719]
[1742135637442,7.04,128.3,128.27,7.796]
[1742135637644,7.04,128.3,128.26,34.42063719]
[1742135638241,33.66433719,128.3,128.26,7.7963]
[1742135638427,7.04,128.3,128.27,26.62433719]
[1742135639248,0.063,128.29,128.27,26.62433719]
[1742135639539,0.063,128.29,128.28,7.7954]
[1742135640238,0.063,128.29,128.27,7.7957]
[1742135640943,26.68733719,128.29,128.24,26.62433719]
[1742135641537,26.68733719,128.29,128.25,7.7972]
[1742135643046,34.48223719,128.29,128.25,7.7972]
[1742135643243,0.14216157,128.28,128.24,26.62433719]
[1742135643455,26.76649876,128.28,128.23,26.62433719]
[1742135643743,34.56189876,128.28,128.24,7.7978]
[1742135644144,0.14216157,128.28,128.24,34.42213719]
[1742135644344,0.063,128.29,128.25,26.62433719]
[1742135644544,0.063,128.29,128.26,26.62433719]
[1742135645140,0.063,128.29,128.28,26.62433719]
[1742135645350,0.063,128.29,128.27,26.62433719]
[1742135645550,0.063,128.29,128.28,7.7954]
[1742135646048,0.063,128.29,128.27,34.42003719]
[1742135646626,0.063,128.29,128.28,26.62433719]
[1742135647251,0.063,128.29,128.28,16.62672403]
[1742135647628,0.063,128.29,128.28,24.42212403]
[1742135649746,0.063,128.33,128.28,60.53744806]
[1742135649948,0.063,128.33,128.32,16.62672403]
[1742135650134,0.063,128.33,128.31,16.62672403]
[1742135650444,0.063,128.33,128.32,16.62672403]
[1742135651532,0.0001,128.33,128.32,23.09262403]
[1742135651954,0.0001,128.33,128.32,30.88562403]
[1742135652729,0.0001,128.33,128.32,67.68049692]
[1742135652934,0.0001,128.33,128.32,68.84872766]
[1742135654057,0.0001,128.33,128.32,30.88562403]
[1742135654253,0.0001,128.33,128.32,16.62672403]
[1742135654457,0.0001,128.33,128.32,24.41972403]
[1742135655947,0.0001,128.33,128.32,43.06937289]
[1742135656343,0.0001,128.33,128.32,59.69609692]
[1742135656651,0.0001,128.33,128.32,60.86433416]
[1742135657146,0.063,128.36,128.35,16.62672403]
[1742135658034,0.063,128.36,128.35,24.41782403]
[1742135658239,0.063,128.36,128.35,30.47312403]
[1742135658439,0.0001,128.36,128.35,31.64121003]
[1742135658635,0.0001,128.36,128.35,50.57518203]
[1742135658947,0.063,128.4,128.36,18.64964886]
[1742135659125,0.063,128.4,128.39,16.62672403]
[1742135660159,0.063,128.4,128.39,24.41542403]
[1742135661542,0.063,128.4,128.38,16.62672403]
[1742135661857,0.063,128.4,128.36,16.62672403]
[1742135662252,7.8511,128.4,128.36,16.62672403]
[1742135662546,0.063,128.4,128.37,16.62672403]
[1742135662745,0.063,128.4,128.38,16.62672403]
[1742135663140,0.063,128.4,128.34,43.89802403]
[1742135663327,0.063,128.4,128.37,16.62672403]
[1742135663734,0.063,128.4,128.38,16.62672403]
[1742135663951,0.063,128.4,128.39,16.62672403]
[1742135664147,0.063,128.4,128.39,24.41542403]
[1742135664855,0.063,128.42,128.39,24.41542403]
[1742135664856,0.063,128.42,128.41,20.0]
[1742135665039,0.063,128.42,128.41,36.62672403]
[1742135666161,0.063,128.42,128.41,44.41422403]
[1742135666461,0.063,128.42,128.41,64.37362629]
[1742135667033,0.063,128.42,128.4,24.41462403]
[1742135667848,0.063,128.42,128.4,16.62672403]
[1742135668257,0.063,128.42,128.39,24.41532403]
[1742135668758,0.063,128.42,128.4,16.62672403]
[1742135669261,0.063,128.42,128.4,26.55054191]
[1742135670253,0.063,128.42,128.4,34.33824191]
[1742135671562,0.063,128.42,128.41,26.55054191]
[1742135672341,0.063,128.42,128.41,34.33804191]
[1742135672553,0.063,128.42,128.37,19.4745]
[1742135672748,0.063,128.42,128.4,26.55054191]
[1742135673361,0.063,128.42,128.41,26.55054191]
[1742135674551,0.063,128.42,128.41,34.33804191]
[1742135675377,0.063,128.42,128.41,35.50581886]
[1742135675540,0.063,128.42,128.41,34.33804191]
[1742135677363,0.063,128.42,128.4,26.58054191]
[1742135678256,0.063,128.42,128.41,7.7875]
[1742135678661,0.063,128.42,128.4,34.36844191]
[1742135678857,0.063,128.42,128.4,0.03]
[1742135679064,0.063,128.42,128.4,7.8179]
[1742135679271,7.04,128.41,128.4,7.8179]
[1742135679466,0.063,128.42,128.4,38.17138113]
[1742135679667,0.063,128.42,128.41,30.35348113]
[1742135680274,0.063,128.42,128.41,38.14098113]
[1742135681104,0.063,128.42,128.4,38.17128113]
[1742135681452,0.063,128.42,128.41,30.35348113]
[1742135682478,0.063,128.42,128.4,38.17128113]
[1742135683472,0.063,128.42,128.41,30.35348113]
[1742135684675,0.063,128.42,128.41,38.14098113]
[1742135686181,0.063,128.42,128.41,7.7875]
[1742135688596,18.933972,128.4,128.32,7.793]
[1742135688763,18.933972,128.4,128.31,8.0649]
[1742135688764,30.35348113,128.36,128.31,38.17678113]
[1742135688969,30.35348113,128.36,128.31,7.8233]
[1742135689181,30.35348113,128.36,128.33,20.0]
[1742135689678,30.35348113,128.36,128.31,0.03]
[1742135689874,38.14388113,128.37,128.32,30.35348113]
[1742135690283,30.35348113,128.37,128.32,30.35348113]
[1742135690962,30.35348113,128.37,128.32,38.14608113]
[1742135691163,18.98928768,128.37,128.32,26.78188768]
[1742135691969,26.92094925,128.38,128.32,26.78188768]
[1742135692677,26.92094925,128.38,128.33,18.98928768]
[1742135693382,26.92094925,128.38,128.32,38.98928768]
[1742135693683,18.98928768,128.37,128.33,7.7924]
[1742135694464,26.77918768,128.37,128.32,46.78218768]
[1742135694768,18.98928768,128.36,128.31,19.01928768]
[1742135694978,18.98928768,128.35,128.31,0.03]
[1742135695178,7.04,128.34,128.31,7.8234]
[1742135695581,7.04,128.34,128.31,26.81268768]
[1742135696673,7.04,128.34,128.33,18.98928768]
[1742135697687,7.04,128.34,128.32,18.98928768]
[1742135698373,7.04,128.34,128.33,7.7924]
[1742135700774,7.04,128.34,128.33,26.78168768]
[1742135701689,7.04,128.34,128.33,7.7924]
[1742135702290,7.04,128.34,128.31,19.01928768]
[1742135702494,7.04,128.34,128.31,7.8233]
[1742135703282,7.04,128.34,128.31,0.03]
[1742135704082,7.04,128.34,128.31,19.01928768]
[1742135704288,7.04,128.34,128.32,18.98928768]
[1742135704773,1.5524,128.39,128.33,26.78168768]
[1742135705090,1.5524,128.39,128.35,18.98928768]
[1742135705299,7.04,128.38,128.35,18.98928768]
[1742135706294,26.02928768,128.38,128.33,26.78168768]
[1742135706674,7.04,128.38,128.36,7.7905]
[1742135707686,7.04,128.38,128.35,7.791]
[1742135708494,7.04,128.38,128.35,26.78028768]
[1742135711118,1.5794,128.41,128.37,18.98928768]
[1742135711278,7.04,128.4,128.37,18.98928768]
[1742135711681,7.04,128.4,128.37,18.97328037]
[1742135711881,7.103,128.4,128.38,18.97328037]
[1742135712082,7.103,128.4,128.39,18.97328037]
[1742135712299,0.063,128.4,128.39,18.97328037]
[1742135713180,0.063,128.4,128.38,26.76248037]
[1742135713395,0.063,128.4,128.39,18.97328037]
[1742135715096,0.063,128.4,128.39,26.76198037]
[1742135715300,0.063,128.4,128.38,26.76228037]
[1742135718196,7.04,128.39,128.34,25.8475]
[1742135718395,7.04,128.39,128.36,26.76338037]
[1742135718883,7.04,128.39,128.35,7.7908]
[1742135718884,27.54919952,128.39,128.35,7.7908]
[1742135719504,27.54919952,128.39,128.34,26.77029952]
[1742135719999,8.5706,128.39,128.37,18.97859952]
[1742135720394,8.5706,128.39,128.36,18.97859952]
[1742135720704,7.04,128.39,128.37,18.97859952]
[1742135722301,7.04,128.39,128.36,18.97859952]
[1742135722506,7.04,128.39,128.33,0.03]
[1742135722507,7.04,128.39,128.37,18.97859952]
[1742135722707,7.04,128.39,128.37,26.76829952]
[1742135724501,7.04,128.39,128.37,26.79829952]
[1742135725106,7.04,128.39,128.38,18.97859952]
[1742135725295,0.063,128.4,128.38,18.97859952]
[1742135725493,0.063,128.4,128.39,18.97859952]
[1742135726404,0.063,128.4,128.39,26.76729952]
[1742135735316,0.063,128.4,128.39,19.92818077]
[1742135737014,0.063,128.4,128.38,7.8191]
[1742135737216,12.20248077,128.4,128.38,0.03]
[1742135737719,0.063,128.4,128.38,0.03]
[1742135742224,12.13948077,128.39,128.38,0.03]
[1742135742428,32.73185277,128.39,128.38,0.03]
[1742135742729,0.14216157,128.38,128.37,0.03]
[1742135742916,19.32164234,128.38,128.37,0.03]
[1742135743832,27.11094234,128.38,128.37,0.03]
[1742135744317,19.32164234,128.38,128.37,0.03]
[1742135744521,7.18216157,128.38,128.37,0.03]
[1742135745929,26.16394681,128.38,128.37,0.03]
[1742135746932,32.903772,128.4,128.37,0.03]
[1742135746933,0.063,128.4,128.37,0.03]
[1742135747133,7.103,128.4,128.37,19.01178524]
[1742135747312,0.063,128.4,128.38,18.98178524]
[1742135748013,0.063,128.4,128.38,7.7891]
[1742135748834,19.18694681,128.4,128.37,0.03]
[1742135749133,19.18694681,128.4,128.37,7.8199]
[1742135750035,19.18694681,128.4,128.37,0.03]
[1742135751335,0.063,128.4,128.37,0.03]
[1742135751525,0.063,128.4,128.37,19.01178524]
[1742135752236,0.063,128.4,128.39,7.7887]
[1742135752625,0.063,128.4,128.38,7.789]
[1742135752823,0.063,128.4,128.37,7.8197]
[1742135753040,0.063,128.4,128.37,26.80148524]
[1742135753431,0.063,128.4,128.37,46.27638524]
[1742135753832,0.063,128.4,128.38,18.98178524]
[1742135754142,0.063,128.4,128.39,7.7887]
[1742135754441,0.063,128.4,128.39,26.77048524]
[1742135756047,0.063,128.42,128.39,46.24238524]
[1742135756232,0.063,128.42,128.4,18.98178524]
[1742135756428,0.063,128.42,128.41,18.98178524]
[1742135757927,0.063,128.42,128.4,18.98178524]
[1742135758127,0.063,128.42,128.41,7.7875]
[1742135758527,0.063,128.42,128.4,7.7878]
[1742135758943,19.04478524,128.42,128.38,7.7893]
[1742135759642,18.98178524,128.41,128.37,26.80158524]
[1742135759840,7.02,128.4,128.37,7.8198]
[1742135760547,7.02,128.4,128.37,0.03]
[1742135760741,27.51198524,128.4,128.37,0.03]
[1742135760948,18.98178524,128.39,128.37,0.03]
[1742135761350,27.51198524,128.4,128.37,0.03]
[1742135761526,27.57498524,128.4,128.37,0.03]
[1742135762549,7.083,128.4,128.38,18.98178524]
[1742135762942,7.083,128.4,128.39,18.98178524]